fUST/lending_fUST_20250106
["ID","MTS","AMOUNT","RATE_DAILY","PERIOD"]
[347816900,1736127039499,-500.0,0.00021992,3]
[347816902,1736127039509,-500.0,0.00021992,3]
[347816904,1736127039519,-2001.03,0.00021992,3]
[347816906,1736127039528,-445.699,0.00022121,2]
[347816909,1736127039538,-500.0,0.0002213,3]
[347816911,1736127039548,-500.0,0.00022131,3]
[347816913,1736127039557,-1263.71,0.00022131,3]
[347816914,1736127039567,-500.0,0.00022131,3]
[347816916,1736127039576,-500.0,0.00022131,3]
[347816918,1736127039585,-592.87,0.00022131,3]
[347816920,1736127039595,-500.0,0.00022131,3]
[347816922,1736127039604,-512.68065513,0.00022131,3]
[347816925,1736127039614,-500.0,0.00022132,3]
[347816927,1736127039623,-500.0,0.00022132,3]
[347816929,1736127039633,-500.0,0.00022132,3]
[347816931,1736127039642,-500.0,0.00022132,3]
[347816933,1736127039651,-500.0,0.00022132,3]
[347816935,1736127039660,-500.0,0.00022132,3]
[347816937,1736127039669,-500.0,0.00022132,3]
[347816939,1736127039678,-500.0,0.00022132,3]
[347816941,1736127039688,-500.0,0.00022132,3]
[347816943,1736127039697,-500.0,0.00022132,3]
[347816945,1736127039706,-500.0,0.00022132,3]
[347816947,1736127039716,-500.0,0.00022132,3]
[347816949,1736127039727,-500.0,0.00022132,3]
[347816951,1736127039735,-500.0,0.00022132,3]
[347816953,1736127039747,-542.41,0.00022132,3]
[347816955,1736127039756,-500.0,0.00022132,3]
[347816957,1736127039766,-500.0,0.00022132,3]
[347816959,1736127039776,-500.0,0.00022132,3]
[347816961,1736127039785,-500.0,0.00022132,3]
[347816963,1736127039794,-500.0,0.00022132,3]
[347816965,1736127039804,-399.78,0.00022132,3]
[347816967,1736127039813,-6126.33,0.00022132,3]
[347816969,1736127039823,-500.0,0.00022132,3]
[347816971,1736127039832,-644.28,0.00022132,3]
[347816973,1736127039842,-2016.3,0.00022132,3]
[347816975,1736127039851,-500.0,0.00022132,3]
[347816977,1736127039860,-500.0,0.00022132,3]
[347816979,1736127039870,-500.0,0.00022132,3]
[347816981,1736127039879,-651.39,0.00022132,3]
[347816983,1736127039889,-500.0,0.00022132,3]
[347816985,1736127039899,-1126.8,0.00022132,3]
[347816987,1736127039908,-500.0,0.00022132,3]
[347816989,1736127039917,-500.0,0.00022132,3]
[347816991,1736127039926,-500.0,0.00022132,3]
[347816993,1736127039937,-559.07,0.00022132,3]
[347816995,1736127039947,-552.89,0.00022132,3]
[347816997,1736127039956,-500.0,0.00022132,3]
[347816999,1736127039965,-500.0,0.00022132,3]
[347817001,1736127039976,-592.68,0.00022132,3]
[347817003,1736127039986,-500.0,0.00022132,3]
[347817005,1736127039996,-500.0,0.00022132,3]
[347817007,1736127040005,-500.0,0.00022132,3]
[347817009,1736127040015,-1217.49,0.00022132,3]
[347817011,1736127040024,-500.0,0.00022132,3]
[347817020,1736127040034,-16387.27,0.00022132,3]
[347817023,1736127040122,-500.0,0.00022132,3]
[347817025,1736127040131,-500.0,0.00022132,3]
[347817027,1736127040141,-500.0,0.00022132,3]
[347817029,1736127040151,-500.0,0.00022132,3]
[347817032,1736127040160,-500.0,0.00022132,3]
[347817034,1736127040175,-555.72,0.00022132,3]
[347817035,1736127040184,-500.0,0.00022132,3]
[347817037,1736127040194,-500.0,0.00022132,3]
[347817039,1736127040203,-661.99,0.00022132,3]
[347817040,1736127040212,-500.0,0.00022132,3]
[347817041,1736127040223,-500.0,0.00022132,3]
[347817042,1736127040233,-500.0,0.00022132,3]
[347817044,1736127040243,-500.0,0.00022132,3]
[347817046,1736127040252,-500.0,0.00022133,3]
[347817048,1736127040261,-500.0,0.00022133,3]
[347817050,1736127040271,-500.0,0.00022133,3]
[347817052,1736127040286,-500.0,0.00022133,3]
[347817053,1736127040295,-500.0,0.00022133,3]
[347817055,1736127040304,-500.0,0.00022133,3]
[347817057,1736127040313,-439.3,0.00022133,3]
[347817059,1736127040323,-500.0,0.00022133,3]
[347817061,1736127040332,-500.0,0.00022133,3]
[347817063,1736127040342,-500.0,0.00022133,3]
[347817065,1736127040352,-500.0,0.00022133,3]
[347817067,1736127040361,-500.0,0.00022133,3]
[347817069,1736127040371,-592.68,0.00022133,3]
[347817071,1736127040380,-151.0,0.00022133,7]
[347817073,1736127040389,-500.0,0.00022133,3]
[347817077,1736127040398,-397.0,0.00022134,3]
[347817080,1736127040409,-500.0,0.00022134,3]
[347817082,1736127040418,-500.0,0.00022134,3]
[347817084,1736127040427,-500.0,0.00022134,3]
[347817086,1736127040437,-500.0,0.00022134,3]
[347817088,1736127040446,-500.0,0.00022134,3]
[347817090,1736127040455,-500.0,0.00022134,3]
[347817091,1736127040465,-500.0,0.00022134,3]
[347817092,1736127040475,-500.0,0.00022134,3]
[347817093,1736127040485,-500.0,0.00022134,3]
[347817094,1736127040494,-500.0,0.00022134,3]
[347817095,1736127040503,-500.0,0.00022134,3]
[347817096,1736127040513,-500.0,0.00022134,3]
[347817097,1736127040523,-500.0,0.00022134,3]
[347817099,1736127040532,-1909.16,0.00022134,3]
[347817101,1736127040541,-500.0,0.00022134,3]
[347817103,1736127040550,-500.0,0.00022134,3]
[347817104,1736127040560,-500.0,0.00022134,3]
[347817107,1736127040569,-500.0,0.00022134,3]
[347817108,1736127040578,-167.62256272,0.00022134,3]
[347817111,1736127040588,-500.0,0.00022134,3]
[347817112,1736127040597,-1469.81,0.00022134,3]
[347817114,1736127040606,-3413.17441723,0.000222,10]
[347817116,1736127040615,-500.0,0.00022266,3]
[347817118,1736127040624,-500.0,0.00022266,3]
[347817120,1736127040634,-4135.67,0.00022266,3]
[347817122,1736127040643,-500.0,0.00022266,3]
[347817124,1736127040653,-500.0,0.00022266,3]
[347817126,1736127040662,-500.0,0.00022266,3]
[347817128,1736127040671,-2001.03,0.00022266,3]
[347817130,1736127040680,-500.0,0.00022404,3]
[347817132,1736127040690,-500.0,0.00022405,3]
[347817134,1736127040699,-1263.71,0.00022405,3]
[347817136,1736127040709,-500.0,0.00022405,3]
[347817139,1736127040718,-500.0,0.00022405,3]
[347817140,1736127040727,-592.87,0.00022405,3]
[347817143,1736127040737,-264.79445812,0.00022405,3]
[347817144,1736127040746,-500.0,0.00022406,3]
[347817147,1736127040755,-500.0,0.00022406,3]
[347817148,1736127040765,-500.0,0.00022406,3]
[347817150,1736127040774,-500.0,0.00022406,3]
[347817152,1736127040783,-485.11,0.00022406,3]
[347817154,1736127040792,-500.0,0.00022406,3]
[347817156,1736127040802,-500.0,0.00022406,3]
[347817158,1736127040811,-500.0,0.00022406,3]
[347817160,1736127040820,-500.0,0.00022406,3]
[347817162,1736127040829,-500.0,0.00022406,3]
[347817164,1736127040839,-500.0,0.00022406,3]
[347817166,1736127040848,-500.0,0.00022406,3]
[347817168,1736127040857,-500.0,0.00022406,3]
[347817170,1736127040867,-500.0,0.00022406,3]
[347817172,1736127040876,-500.0,0.00022406,3]
[347817174,1736127040886,-500.0,0.00022406,3]
[347817176,1736127040896,-500.0,0.00022406,3]
[347817178,1736127040905,-500.0,0.00022406,3]
[347817180,1736127040914,-342.53582524,0.00022406,3]
[347817182,1736127040924,-6126.33,0.00022406,3]
[347817184,1736127040933,-500.0,0.00022406,3]
[347817186,1736127040942,-644.28,0.00022406,3]
[347817188,1736127040952,-2016.3,0.00022406,3]
[347817191,1736127040962,-500.0,0.00022406,3]
[347817193,1736127040975,-500.0,0.00022406,3]
[347817195,1736127040985,-500.0,0.00022406,3]
[347817196,1736127040994,-651.39,0.00022406,3]
[347817198,1736127041003,-500.0,0.00022406,3]
[347817201,1736127041013,-1126.8,0.00022406,3]
[347817203,1736127041023,-500.0,0.00022406,3]
[347817205,1736127041032,-500.0,0.00022406,3]
[347817207,1736127041041,-500.0,0.00022406,3]
[347817209,1736127041051,-559.07,0.00022406,3]
[347817211,1736127041061,-552.89,0.00022406,3]
[347817213,1736127041070,-500.0,0.00022406,3]
[347817215,1736127041079,-500.0,0.00022406,3]
[347817216,1736127041089,-592.68,0.00022406,3]
[347817218,1736127041098,-500.0,0.00022406,3]
[347817220,1736127041107,-500.0,0.00022406,3]
[347817223,1736127041117,-500.0,0.00022406,3]
[347817224,1736127041126,-1217.49,0.00022406,3]
[347817226,1736127041135,-500.0,0.00022406,3]
[347817228,1736127041144,-16387.27,0.00022406,3]
[347817230,1736127041153,-608.9,0.00022406,3]
[347817232,1736127041162,-500.0,0.00022406,3]
[347817234,1736127041172,-500.0,0.00022406,3]
[347817236,1736127041181,-500.0,0.00022406,3]
[347817238,1736127041191,-504.86799175,0.00022406,3]
[347817240,1736127041200,-555.72,0.00022406,3]
[347817242,1736127041209,-500.0,0.00022406,3]
[347817244,1736127041218,-500.0,0.00022406,3]
[347817246,1736127041229,-661.99,0.00022406,3]
[347817248,1736127041238,-500.0,0.00022406,3]
[347817250,1736127041248,-500.0,0.00022406,3]
[347817252,1736127041257,-500.0,0.00022406,3]
[347817254,1736127041267,-500.0,0.00022406,3]
[347817255,1736127041278,-500.0,0.00022407,3]
[347817257,1736127041290,-500.0,0.00022407,3]
[347817260,1736127041300,-500.0,0.00022407,3]
[347817261,1736127041309,-432.60669599,0.00022407,3]
[347817263,1736127041320,-500.0,0.00022407,3]
[347817265,1736127041329,-500.0,0.00022407,3]
[347817267,1736127041338,-500.0,0.00022407,3]
[347817270,1736127041349,-500.0,0.00022407,3]
[347817271,1736127041358,-500.0,0.00022407,3]
[347817274,1736127041368,-500.0,0.00022407,3]
[347817276,1736127041378,-592.68,0.00022407,3]
[347817278,1736127041387,-500.0,0.00022407,3]
[347817280,1736127041396,-500.0,0.00022408,3]
[347817282,1736127041405,-500.0,0.00022408,3]
[347817284,1736127041414,-500.0,0.00022408,3]
[347817286,1736127041424,-500.0,0.00022408,3]
[347817287,1736127041433,-500.0,0.00022408,3]
[347817289,1736127041443,-300.75855935,0.00022408,3]
[347817307,1736127041668,-167.05781664,0.00020936,2]
[347817308,1736127041677,-509.62076061,0.00021034,3]
[347817309,1736127041687,-167.05781662,0.00021142,2]
[347817310,1736127041696,-199.24144065,0.00022408,3]
[347817311,1736127041705,-359.5,0.00022408,3]
[347817313,1736127041715,-479.93691547,0.00022408,3]
[347817321,1736127041796,-20.06308453,0.00022408,3]
[347817323,1736127041805,-397.79933232,0.00022408,3]
[347817326,1736127041816,-102.20066768,0.00022408,3]
[347817328,1736127041825,-398.16749696,0.00022408,3]
[347817334,1736127041991,-101.83250304,0.00022408,3]
[347817335,1736127042004,-500.0,0.00022408,3]
[347817336,1736127042013,-1909.16,0.00022408,3]
[347817337,1736127042023,-500.0,0.00022408,3]
[347817338,1736127042032,-500.0,0.00022408,3]
[347817339,1736127042123,-500.0,0.00022408,3]
[347817340,1736127042134,-500.0,0.00022408,3]
[347817341,1736127042143,-1469.81,0.00022408,3]
[347817342,1736127042153,-500.0,0.0002254,3]
[347817343,1736127042162,-500.0,0.0002254,3]
[347817344,1736127042171,-4135.67,0.0002254,3]
[347817345,1736127042182,-500.0,0.0002254,3]
[347817346,1736127042191,-500.0,0.0002254,3]
[347817347,1736127042201,-500.0,0.0002254,3]
[347817348,1736127042211,-2001.03,0.0002254,3]
[347817349,1736127042220,-179.94567927,0.00022567,2]
[347817350,1736127042230,-500.0,0.00022678,3]
[347817351,1736127042239,-500.0,0.00022679,3]
[347817352,1736127042250,-1263.71,0.00022679,3]
[347817353,1736127042259,-500.0,0.00022679,3]
[347817354,1736127042268,-500.0,0.00022679,3]
[347817355,1736127042281,-592.87,0.00022679,3]
[347817356,1736127042291,-500.0,0.0002268,3]
[347817357,1736127042300,-500.0,0.0002268,3]
[347817358,1736127042309,-500.0,0.0002268,3]
[347817359,1736127042318,-500.0,0.0002268,3]
[347817360,1736127042329,-500.0,0.0002268,3]
[347817361,1736127042338,-500.0,0.0002268,3]
[347817362,1736127042347,-275.82560245,0.0002268,3]
[347817363,1736127042360,-224.17439755,0.0002268,3]
[347817364,1736127042370,-500.0,0.0002268,3]
[347817365,1736127042379,-228.85583281,0.0002268,3]
[347817366,1736127042389,-451.30228209,0.0002268,3]
[347817765,1736127079239,162.495186,0.00013973,2]
[347817776,1736127654898,5000.0,0.00025,120]
[347817777,1736127673939,4912.53,0.00025,120]
[347817779,1736127934175,-426.94403934,0.00016062,2]
[347817780,1736127934197,-871.37419511,0.00016224,2]
[347817781,1736127936129,-451.25625946,0.00016224,2]
[347817782,1736127936151,-3708.65949548,0.00016554,2]
[347817783,1736128011094,-334.40504318,0.00016388,2]
[347817784,1736128026105,-139.99406167,0.00016388,2]
[347817785,1736128026127,-567.03804431,0.00016454,2]
[347817786,1736128031095,-900.97927482,0.00016454,2]
[347817787,1736128043222,-247.98507833,0.00016454,2]
[347817788,1736128043247,-1313.80067548,0.00016554,2]
[347817789,1736128043272,-161.9084033,0.00019368,2]
[347817790,1736128043294,-1041.6477187,0.00019696,2]
[347817791,1736128043317,-163.277568,0.00019761,2]
[347817792,1736128043341,-156.95113209,0.000199,2]
[347817793,1736128043364,-3342.88030525,0.00019993,2]
[347817802,1736128128270,162.419525,0.00013973,2]
[347817803,1736128153173,-322.10014094,0.00019964,2]
[347817841,1736128232186,-2451.99773205,0.00019907,2]
[347818026,1736128242984,-250.61398885,0.00019907,2]
[347818027,1736128243015,-37.15611591,0.00019907,2]
[347818028,1736128243027,-2424.98972574,0.00019907,2]
[347818029,1736128243037,-156.95113206,0.000204,2]
[347818030,1736128243046,-156.95113206,0.000209,2]
[347818031,1736128243055,-159.32192508,0.00020933,2]
[347818032,1736128243065,-167.05781662,0.00020935,2]
[347818033,1736128243075,-211.98910994,0.00021031,2]
[347818071,1736128245954,-88.01089006,0.00021031,2]
[347818073,1736128245964,-500.0,0.00021032,3]
[347818075,1736128245973,-500.0,0.00021032,3]
[347818077,1736128245982,-1516.51,0.00021032,3]
[347818079,1736128245991,-267.38312879,0.00021032,3]
[347818081,1736128246000,-847.66,0.00021032,3]
[347818083,1736128246009,-52.5025536,0.00021032,3]
[347818118,1736129001529,1674.37,0.00025,120]
[347818119,1736129091286,162.355649,0.00013973,2]
[347818120,1736129159146,-301.51713265,0.0001837,2]
[347818121,1736129159173,-224.96476123,0.00018556,2]
[347818122,1736129159200,-1420.10808621,0.00018932,2]
[347818123,1736129225129,-162.9775157,0.00019759,2]
[347818124,1736129225151,-2016.0,0.0002,2]
[347818125,1736129225174,-898.29362146,0.00020011,2]
[347818126,1736129251102,-163.17755,0.00019677,2]
[347818127,1736129251124,-119.7833911,0.00020011,2]
[347818162,1736129432396,-1081.18092134,0.00020011,2]
[347818164,1736129432406,-583.90377866,0.0002066,2]
[347818334,1736129438138,-4059.5031472,0.0002066,2]
[347818335,1736129438147,-155.3009827,0.00020858,2]
[347818336,1736129438157,-626.83521463,0.00020859,2]
[347818337,1736129438166,-1390.32552582,0.000209,2]
[347818338,1736129438175,-744.80966764,0.000209,2]
[347818339,1736129438185,-300.0,0.00020972,2]
[347818340,1736129438194,-500.97832016,0.00020973,2]
[347818341,1736129438204,-504.32389489,0.00020973,2]
[347818342,1736129438213,-500.0,0.00020997,3]
[347818343,1736129438223,-509.62076061,0.00020997,3]
[347818344,1736129438232,-1546.74705489,0.00020998,2]
[347818345,1736129438241,-12719.86977584,0.00020998,2]
[347818346,1736129438250,-1479.85,0.00020998,3]
[347818347,1736129438261,-812.34,0.00020998,3]
[347818348,1736129438271,-500.0,0.00020998,3]
[347818349,1736129438279,-500.0,0.00020998,3]
[347818350,1736129438289,-500.0,0.00020998,3]
[347818351,1736129438298,-500.0,0.00020998,3]
[347818352,1736129438308,-500.0,0.00020998,3]
[347818353,1736129438318,-915.6,0.00020998,3]
[347818354,1736129438327,-500.0,0.00020998,3]
[347818355,1736129438336,-500.0,0.00020998,3]
[347818356,1736129438347,-500.0,0.00020998,3]
[347818357,1736129438357,-500.0,0.00020998,3]
[347818358,1736129438367,-898.08,0.00020998,3]
[347818359,1736129438376,-500.0,0.00020998,3]
[347818360,1736129438385,-500.0,0.00020998,3]
[347818361,1736129438395,-500.0,0.00020998,3]
[347818362,1736129438404,-500.0,0.00020998,3]
[347818363,1736129438414,-500.0,0.00020998,3]
[347818364,1736129438423,-606.44776266,0.00020998,2]
[347818365,1736129438432,-500.0,0.00020998,3]
[347818366,1736129438442,-4668.42,0.00020998,3]
[347818367,1736129438451,-500.0,0.00020998,3]
[347818368,1736129438461,-500.0,0.00020998,3]
[347818369,1736129438471,-500.0,0.00020998,2]
[347818370,1736129438480,-500.0,0.00020998,2]
[347818371,1736129438490,-329.27160728,0.00020998,2]
[347818372,1736129438499,-342.81647621,0.00020998,2]
[347818373,1736129438510,-551.80941694,0.00020998,2]
[347818374,1736129438522,-500.0,0.00020998,2]
[347818375,1736129438531,-643.7418877,0.00020998,2]
[347818376,1736129438540,-500.0,0.00020998,2]
[347818377,1736129438550,-500.0,0.00020998,2]
[347818378,1736129438559,-500.0,0.00020998,2]
[347818379,1736129438569,-500.0,0.00020998,2]
[347818380,1736129438578,-500.0,0.00020998,2]
[347818381,1736129438587,-500.0,0.00020998,2]
[347818382,1736129438597,-500.0,0.00020998,2]
[347818383,1736129438606,-190.24287614,0.00020998,2]
[347818384,1736129438615,-500.0,0.00020998,2]
[347818385,1736129438624,-500.0,0.00020998,2]
[347818386,1736129438634,-500.0,0.00020998,2]
[347818387,1736129438643,-500.0,0.00020998,2]
[347818388,1736129438652,-500.0,0.00020998,2]
[347818389,1736129438662,-500.0,0.00020998,2]
[347818390,1736129438671,-500.0,0.00020998,2]
[347818391,1736129438682,-500.0,0.00020998,2]
[347818392,1736129438691,-500.0,0.00020999,3]
[347818393,1736129438701,-500.0,0.00020999,3]
[347818394,1736129438710,-500.0,0.00020999,3]
[347818395,1736129438720,-500.0,0.00020999,3]
[347818396,1736129438729,-500.0,0.00020999,3]
[347818397,1736129438738,-500.0,0.00020999,3]
[347818398,1736129438748,-500.0,0.00020999,3]
[347818399,1736129438758,-500.0,0.00020999,3]
[347818400,1736129438767,-547.39,0.00020999,3]
[347818401,1736129438777,-500.0,0.00020999,3]
[347818402,1736129438786,-275.97537379,0.00020999,3]
[347818403,1736129438795,-196.31825064,0.00020999,3]
[347818404,1736129438808,-303.68174936,0.00020999,3]
[347818405,1736129438817,-500.0,0.00020999,3]
[347818406,1736129438827,-500.0,0.00020999,3]
[347818407,1736129438837,-500.0,0.00020999,3]
[347818408,1736129438846,-500.0,0.00020999,3]
[347818409,1736129438856,-500.0,0.00020999,3]
[347818410,1736129438865,-500.0,0.00020999,3]
[347818411,1736129438874,-500.0,0.00020999,3]
[347818412,1736129438883,-391.68997793,0.00020999,3]
[347818413,1736129438893,-500.0,0.00020999,3]
[347818414,1736129438903,-12322.45,0.00020999,3]
[347818415,1736129438912,-500.0,0.00020999,3]
[347818416,1736129438922,-500.0,0.00020999,3]
[347818417,1736129438931,-500.0,0.00020999,3]
[347818418,1736129438940,-500.0,0.00020999,3]
[347818419,1736129438950,-413.55289468,0.00020999,2]
[347818420,1736129438960,-161.05087768,0.00020999,2]
[347818421,1736129438969,-56312.14367682,0.00021,2]
[347818422,1736129438981,-3007.84163347,0.00021,2]
[347818440,1736129441074,-1418.19,0.00020998,3]
[347818441,1736129441083,-98582.01937894,0.00021,2]
[347818494,1736129446374,-1480.63705321,0.00021,2]
[347818495,1736129502493,185.36308,0.000189,2]
[347818498,1736129948133,162.290879,0.00013973,2]
[347818500,1736130339137,-218.58781305,0.00018612,2]
[347818501,1736130339159,-129.13102542,0.000188,2]
[347818503,1736130448096,-1440.29446217,0.000189,2]
[347818504,1736130450402,-202.64515678,0.000189,2]
[347818528,1736130550113,-1053.51651586,0.00018,2]
[347818529,1736130550134,-737.42231627,0.000189,2]
[347818530,1736130556124,-34.75574655,0.000189,2]
[347818531,1736130556144,-258.63242258,0.00019,2]
[347818532,1736130568149,-44.24644102,0.00019,2]
[347818533,1736130568171,-162.977516,0.00019178,2]
[347818534,1736130568191,-154.62301223,0.0001919,2]
[347818535,1736130568212,-4008.67619782,0.00019203,2]
[347818603,1736130632683,-1684.81105208,0.00019203,2]
[347818604,1736130632693,-4045.7800687,0.0001999,2]
[347818606,1736130632702,-300.0,0.00019999,2]
[347818607,1736130632712,-5187.77256161,0.0002,2]
[347818609,1736130632721,-151.45403192,0.0002,2]
[347818611,1736130632730,-195.49994361,0.00020489,2]
[347818613,1736130632743,-500.0,0.00020587,3]
[347818615,1736130632751,-860.66,0.00020587,3]
[347818617,1736130632761,-244.9167127,0.00020587,3]
[347818619,1736130632770,-500.0,0.00020587,3]
[347818620,1736130632779,-500.0,0.00020587,3]
[347818621,1736130632789,-4473.9,0.00020588,3]
[347818622,1736130632798,-1251.99672936,0.00020588,3]
[347818625,1736130632818,-107.10327064,0.00020588,3]
[347818627,1736130632827,-778.49,0.00020588,3]
[347818629,1736130632836,-500.0,0.00020588,3]
[347818631,1736130632847,-500.0,0.00020588,3]
[347818633,1736130632856,-500.0,0.00020588,3]
[347818635,1736130632866,-500.0,0.00020588,3]
[347818637,1736130632875,-500.0,0.00020588,3]
[347818639,1736130632885,-877.45,0.00020588,3]
[347818641,1736130632894,-500.0,0.00020588,3]
[347818643,1736130632903,-500.0,0.00020588,3]
[347818645,1736130632913,-500.0,0.00020588,3]
[347818647,1736130632922,-500.0,0.00020588,3]
[347818649,1736130632932,-500.0,0.00020588,3]
[347818651,1736130632941,-500.0,0.00020589,3]
[347818653,1736130632950,-500.0,0.00020589,3]
[347818655,1736130632960,-500.0,0.00020589,3]
[347818657,1736130632969,-500.0,0.00020589,3]
[347818659,1736130632979,-500.0,0.00020589,3]
[347818661,1736130632990,-500.0,0.00020589,3]
[347818663,1736130632999,-500.0,0.00020589,3]
[347818676,1736130633110,-500.0,0.00020589,3]
[347818678,1736130633120,-500.0,0.00020589,3]
[347818680,1736130633130,-506.91702153,0.00020589,3]
[347818682,1736130633139,-500.0,0.00020589,3]
[347818684,1736130633149,-500.0,0.00020589,3]
[347818686,1736130633158,-500.0,0.00020589,3]
[347818688,1736130633167,-500.0,0.00020589,3]
[347818690,1736130633177,-216.24269461,0.00020589,3]
[347818692,1736130633187,-500.0,0.00020589,3]
[347818694,1736130633196,-500.0,0.00020589,3]
[347818696,1736130633206,-500.0,0.00020589,3]
[347818698,1736130633215,-500.0,0.00020589,3]
[347818700,1736130633224,-500.0,0.00020589,3]
[347818702,1736130633234,-500.0,0.00020589,3]
[347818704,1736130633244,-500.0,0.00020589,3]
[347818706,1736130633254,-508.78235797,0.00020589,3]
[347818708,1736130633263,-500.0,0.00020589,3]
[347818710,1736130633273,-500.0,0.00020589,3]
[347818712,1736130633282,-500.0,0.00020589,3]
[347818714,1736130633291,-255.01465525,0.00020589,3]
[347819075,1736130638290,-244.98534475,0.00020589,3]
[347819076,1736130638299,-500.0,0.00020589,3]
[347819077,1736130638308,-343.3268515,0.00020589,3]
[347819109,1736130643281,-156.6731485,0.00020589,3]
[347819110,1736130643291,-254.75805444,0.00020589,3]
[347819111,1736130643382,-245.24194556,0.00020589,3]
[347819112,1736130643392,-153.88371255,0.00020589,3]
[347819113,1736130643402,-394.45034189,0.00020589,3]
[347819128,1736130646461,-500.0,0.00020587,3]
[347819129,1736130646471,-105.54965811,0.00020589,3]
[347819130,1736130646481,-500.0,0.00020589,3]
[347819131,1736130646490,-500.0,0.00020589,3]
[347819132,1736130646501,-500.0,0.00020589,3]
[347819133,1736130646511,-500.0,0.00020589,3]
[347819135,1736130646521,-12322.45,0.00020589,3]
[347819136,1736130646531,-500.0,0.00020589,3]
[347819137,1736130646540,-500.0,0.00020589,3]
[347819138,1736130646550,-500.0,0.00020589,3]
[347819139,1736130646560,-500.0,0.00020589,3]
[347819140,1736130646569,-500.0,0.00020589,3]
[347819141,1736130646579,-175.1308203,0.00020589,3]
[347819142,1736130646588,-500.0,0.00020589,3]
[347819143,1736130646597,-500.0,0.00020589,3]
[347819144,1736130646607,-500.0,0.00020589,3]
[347819145,1736130646616,-500.0,0.00020589,3]
[347819146,1736130646625,-157.48,0.0002059,2]
[347819147,1736130646634,-733.08411755,0.00020707,2]
[347819148,1736130646643,-4773.1215418,0.00020724,2]
[347819149,1736130646652,-1112.26042064,0.00020763,2]
[347819150,1736130646661,-195.49994359,0.00020836,2]
[347819151,1736130646673,-500.0,0.00020861,3]
[347819152,1736130646682,-860.66,0.00020861,3]
[347819153,1736130646691,-500.0,0.00020861,3]
[347819154,1736130646701,-500.0,0.00020861,3]
[347819155,1736130646710,-500.0,0.00020861,2]
[347819156,1736130646719,-465.58254179,0.00020861,2]
[347819157,1736130646728,-500.0,0.00020861,3]
[347819158,1736130646738,-4473.9,0.00020862,3]
[347819159,1736130646751,-1359.1,0.00020862,3]
[347819160,1736130646760,-778.49,0.00020862,3]
[347819161,1736130646770,-500.0,0.00020862,3]
[347819162,1736130646779,-500.0,0.00020862,3]
[347819163,1736130646789,-500.0,0.00020862,3]
[347819164,1736130646798,-500.0,0.00020862,3]
[347819165,1736130646807,-500.0,0.00020862,3]
[347819166,1736130646817,-877.45,0.00020862,3]
[347819167,1736130646827,-500.0,0.00020862,3]
[347819168,1736130646836,-500.0,0.00020862,3]
[347819169,1736130646847,-500.0,0.00020862,3]
[347819170,1736130646858,-500.0,0.00020862,3]
[347819171,1736130646867,-500.0,0.00020862,3]
[347819172,1736130646877,-500.0,0.00020863,3]
[347819173,1736130646887,-500.0,0.00020863,3]
[347819174,1736130646897,-500.0,0.00020863,3]